[Event "Almaty Open 2017"]
[Site "Almaty"]
[Date "2017.10.10"]
[Round "8"]
[White "Urazayev, Arystanbek"]
[Black "Ansat, Aldiyar"]
[Result "1-0"]
[ECO "A04"]
[WhiteElo "2363"]
[BlackElo "1996"]
[Annotator "NA RC"]
[PlyCount "83"]
[EventDate "2017.??.??"]
[EventType "swiss"]
[EventCountry "KAZ"]
[SourceTitle "playchess.com"]
[Source "ChessBase"]
[SourceQuality "1"]
[TimeControl "5400+30"]

{[%evp 8,54,41,18,12,-9,-5,-17,13,-10,14,0,-2,0,-4,0,15,32767,38,29,44,-2,8,16,11,13,7,14,5,0,-14,-14,25,5,21,0,4,-39,36,20,27,25,33,31,29,8,22,15,78]} 1. Nf3 {[%emt 0:12:49]} c5 {[%emt 0:00:15]} 2. g3 {[%emt 0:00:33]} b6 {[%emt 0:00:18]} 3. Bg2 {[%emt 0:00:29]} Bb7 {[%emt 0:00:17]} 4. O-O {[%emt 0:00:32]} Nf6 {[%emt 0:00:37]} 5. d3 {[%emt 0:00:15]} e6 {[%emt 0:00:33]} 6. Nbd2 {[%emt 0:00:07]} Be7 {[%emt 0:00:20]} 7. e4 {[%emt 0:00:34]} d6 {[%emt 0:00:18] LiveBook: 58 Games} 8. h3 {[%emt 0:08:10] A05: Réti Opening: 1 Nf3 Nf6} (8. c3 Nbd7 9. Qe2 Qc7 10. Rd1 O-O 11. d4 cxd4 12. cxd4 Rac8 13. Ne1 a6 14. Nd3 b5 15. f3 a5 {½-½ (41) Karjakin,S (2753)-Tomashevsky,E (2747) Chita 2015}) 8... Nbd7 {[%emt 0:06:31]} 9. Nh2 {[%emt 0:00:52]} Qc7 {[%emt 0:10:26]} 10. f4 {[%emt 0:00:52]} b5 {[%emt 0:11:59]} 11. a4 {[%emt 0:06:49]} a6 {[%emt 0:04:33]} 12. g4 $146 {[%emt 0:04:01]} ({Predecessor:} 12. Qe2 O-O 13. g4 {1-0 (28) Ponizil,C (2295)-Kratochvil,J (2006) Havlickuv Brod 2008}) 12... Nb6 {[%emt 0:08:38]} 13. g5 {[%emt 0:03:24]} Nfd7 {[%emt 0:04:14]} 14. a5 {[%emt 0:00:24]} Nc8 {[%emt 0:04:19]} 15. Qh5 {[%emt 0:07:38]} Na7 {[%emt 0:11:26]} 16. b3 {[%emt 0:07:13]} g6 {[%emt 0:11:26]} 17. Qe2 {[%emt 0:01:21]} Nc6 {[%emt 0:00:47]} 18. Ndf3 {[%emt 0:00:48]} O-O-O {[%emt 0:03:29]} 19. Bb2 {[%emt 0:00:34]} Rhe8 {[%emt 0:00:54]} 20. Ng4 {[%emt 0:02:14]} Kb8 {[%emt 0:05:00]} 21. Qd2 {[%emt 0:03:40]} b4 {[%emt 0:05:28]} 22. Nh6 {[%emt 0:04:12]} f6 {[%emt 0:00:33]} 23. Nf7 {[%emt 0:04:51]} Rc8 {[%emt 0:00:09]} 24. gxf6 {[%emt 0:01:12]} Bxf6 {[%emt 0:00:23]} 25. e5 {[%emt 0:07:52]} dxe5 {[%emt 0:01:02]} 26. fxe5 {[%emt 0:02:51]} Bxe5 {[%emt 0:01:49]} 27. N3xe5 {[%emt 0:01:19]} Ncxe5 $16 {[%emt 0:00:20]} 28. Nxe5 {[%emt 0:00:46]} Nxe5 {[%emt 0:00:10]} 29. Qe3 {[%emt 0:02:49]} Nd7 {[%emt 0:03:32]} 30. Bxb7 {[%emt 0:00:41]} Qxb7 {[%emt 0:01:34]} 31. Rf7 {[%emt 0:00:18]} Rf8 {[%emt 0:02:17]} 32. Raf1 {[%emt 0:01:03]} Rxf7 {[%emt 0:01:05]} 33. Rxf7 {[%emt 0:00:03]} Qd5 {[%emt 0:00:39]} 34. Qe4 {[%emt 0:02:33]} Qg5+ {[%emt 0:01:36]} 35. Kh1 {[%emt 0:00:12]} Rd8 {[%emt 0:00:19]} 36. Bf6 {[%emt 0:04:10]} Qc1+ {[%emt 0:00:32]} 37. Kg2 {[%emt 0:00:02]} Qxc2+ {[%emt 0:00:37]} 38. Kg3 {[%emt 0:00:01]} Qd1 {[%emt 0:00:34]} 39. Bxd8 {[%emt 0:01:25]} Qg1+ {[%emt 0:00:08]} 40. Qg2 {[%emt 0:00:35]} Qe3+ {[%emt 0:00:11]} 41. Kh2 {[%emt 0:01:12]} Qe5+ {[%emt 0:00:42]} 42. Qg3 {[%emt 0:01:23]} 1-0

[Event "Almaty Open 2017"]
[Site "Almaty"]
[Date "2017.10.11"]
[Round "9"]
[White "Vokhidov, Shamsiddin"]
[Black "Rakhimzhan, Alen"]
[Result "1-0"]
[ECO "C65"]
[WhiteElo "2399"]
[BlackElo "2078"]
[Annotator "RC"]
[PlyCount "125"]
[EventDate "2017.??.??"]
[EventType "swiss"]
[EventCountry "KAZ"]
[SourceTitle "playchess.com"]
[Source "ChessBase"]
[SourceQuality "1"]
[TimeControl "5400+30"]

1. e4 {[%emt 0:00:00]} e5 {[%emt 0:00:24]} 2. Nf3 {[%emt 0:00:09]} Nc6 {[%emt 0:00:10]} 3. Bb5 {[%emt 0:00:10]} Nf6 {[%emt 0:00:07]} 4. d3 {[%emt 0:00:09]} Bc5 {[%emt 0:00:07]} 5. c3 {[%emt 0:00:11]} O-O {[%emt 0:00:10]} 6. O-O {[%emt 0:00:10]} d6 {[%emt 0:00:07]} 7. Nbd2 {[%emt 0:00:12]} a6 {[%emt 0:00:07]} 8. Ba4 {[%emt 0:00:09]} Ba7 {[%emt 0:00:06]} 9. h3 {[%emt 0:00:29]} Ne7 {[%emt 0:00:07]} 10. Re1 {[%emt 0:00:20]} Ng6 {[%emt 0:00:21]} 11. Nf1 {[%emt 0:00:10]} c6 {[%emt 0:00:09]} 12. Ng3 {[%emt 0:03:50]} Qc7 {[%emt 0:06:32]} 13. Bg5 {[%emt 0:01:37]} Nd7 {[%emt 0:06:52]} 14. d4 {[%emt 0:01:23]} b5 {[%emt 0:10:34]} 15. Bc2 {[%emt 0:03:23]} h6 {[%emt 0:05:05]} 16. Be3 {[%emt 0:00:37]} Nf6 {[%emt 0:01:27]} 17. Qd2 {[%emt 0:00:48]} Re8 {[%emt 0:06:51]} 18. Rad1 {[%emt 0:03:53]} Be6 {[%emt 0:02:37]} 19. Nf5 {[%emt 0:04:17]} Bxf5 {[%emt 0:25:17]} 20. exf5 {[%emt 0:00:09]} e4 {[%emt 0:07:53]} 21. Nh2 {[%emt 0:11:43]} Nf8 {[%emt 0:03:49]} 22. Ng4 {[%emt 0:07:50]} N8h7 {[%emt 0:00:51]} 23. Nxf6+ {[%emt 0:02:58]} Nxf6 {[%emt 0:00:18]} 24. Bxh6 {[%emt 0:00:48]} Nh7 {[%emt 0:15:50]} 25. Bf4 {[%emt 0:00:26]} Nf6 {[%emt 0:00:18]} 26. Bh6 {[%emt 0:01:27]} Nh7 {[%emt 0:00:32]} 27. f6 {[%emt 0:00:55]} d5 {[%emt 0:03:12]} 28. Bxg7 {[%emt 0:01:14]} Bb8 {[%emt 0:00:17]} 29. g3 {[%emt 0:00:59]} Qd7 {[%emt 0:00:01]} 30. Qh6 {[%emt 0:02:05]} Qf5 {[%emt 0:00:26]} 31. Rf1 {[%emt 0:02:07]} Qg6 {[%emt 0:01:12]} 32. Qxg6 {[%emt 0:00:45]} fxg6 {[%emt 0:00:03]} 33. f3 {[%emt 0:00:43]} e3 {[%emt 0:04:09]} 34. Bxg6 {[%emt 0:00:45]} Re6 {[%emt 0:00:05]} 35. Bf5 {[%emt 0:00:48]} Re8 {[%emt 0:00:17]} 36. Bxh7+ {[%emt 0:10:05]} Kxh7 {[%emt 0:00:06]} 37. f7 {[%emt 0:00:53]} Bxg3 {[%emt 0:00:02]} 38. fxe8=Q {[%emt 0:00:40]} Rxe8 {[%emt 0:00:05]} 39. Kg2 {[%emt 0:00:33]} e2 {[%emt 0:02:47]} 40. Kxg3 {[%emt 0:00:41]} Kxg7 {[%emt 0:00:03]} 41. Kf2 {[%emt 0:00:25]} Kf6 {[%emt 0:00:28]} 42. Rde1 {[%emt 0:00:14]} exf1=Q+ {[%emt 0:00:11]} 43. Kxf1 {[%emt 0:00:12]} Rh8 {[%emt 0:01:17]} 44. Kg2 {[%emt 0:00:12]} Rg8+ {[%emt 0:00:26]} 45. Kf2 {[%emt 0:01:19]} Rb8 {[%emt 0:00:24]} 46. b3 {[%emt 0:01:17]} a5 {[%emt 0:00:43]} 47. h4 {[%emt 0:00:41]} Rh8 {[%emt 0:00:21]} 48. Rh1 {[%emt 0:00:37]} Kf5 {[%emt 0:00:41]} 49. h5 {[%emt 0:00:22]} Rh6 {[%emt 0:00:22]} 50. Kg3 {[%emt 0:00:43]} b4 {[%emt 0:00:23]} 51. cxb4 {[%emt 0:00:37]} axb4 {[%emt 0:00:02]} 52. Rh2 {[%emt 0:00:13]} Kg5 {[%emt 0:00:20]} 53. f4+ {[%emt 0:00:21]} Kf5 {[%emt 0:00:04]} 54. Kf3 {[%emt 0:00:01]} Rh8 {[%emt 0:01:06]} 55. h6 {[%emt 0:00:36]} Rh7 {[%emt 0:00:22]} 56. Rh1 {[%emt 0:00:59]} Kg6 {[%emt 0:00:58]} 57. Kg4 {[%emt 0:01:56]} c5 {[%emt 0:00:32]} 58. dxc5 {[%emt 0:00:13]} d4 {[%emt 0:00:04]} 59. c6 {[%emt 0:01:22]} d3 {[%emt 0:00:40]} 60. c7 {[%emt 0:00:40]} Rxc7 {[%emt 0:00:16]} 61. h7 {[%emt 0:00:21]} Rxh7 {[%emt 0:01:19]} 62. Rxh7 {[%emt 0:00:05]} Kxh7 {[%emt 0:00:03]} 63. Kf3 {[%emt 0:00:05]} 1-0